Cogmind - Beta 13 @@@ ROGUE MODE // 2024.04.22 @ 22:55:22 Player: ThemBee Result: Destroyed by JV-W43(R) with Subdweller Laser Performance ------------- Evolutions (0) 0 Regions Visited (2) 400 Robots Destroyed (16) 80 Value Destroyed (357) 357 Prototype IDs (14) 280 Alien Tech Used (0) 0 Bonus (0) 0 TOTAL SCORE: 1117 Bonus ------- None Cogmind --------- Core Integrity 0/250 Matter 139/300 Energy 169/200 System Corruption 0% Temperature Cool (6) Movement Core (550) Ox10 Location -10/Subcaves Parts ------- > --- POWER (1) -------- Subdweller Power Source > --- PROPULSION (2) --- (None) > --- UTILITY (2) ------ Large Storage Unit Targeting Computer > --- WEAPON (2) ------- Beam Rifle Beam Rifle > --- INVENTORY (15) --- Improved Ion Engine Improved Ion Engine Small Storage Unit High-capacity Storage Unit Hacking Suite Rainbow Chip Beam Rifle Heavy Assault Rifle Grenade Launcher Datajack Shrapnel Trap Peak State ------------ > --- POWER ------------ Improved Ion Engine > --- PROPULSION ------- Light Treads Light Treads > --- UTILITY ---------- Large Storage Unit Targeting Computer > --- WEAPON ----------- Heavy Assault Rifle Barrage Gun > --- INVENTORY -------- Improved Ion Engine Improved Ion Engine Light Treads Small Storage Unit High-capacity Storage Unit Hacking Suite Rainbow Chip Beam Rifle Beam Rifle Beam Rifle Beam Rifle Heavy Assault Rifle Grenade Launcher Grenade Launcher Datajack [Rating: 14] Favorites ----------- Power Ion Engine Engine Ion Engine Propulsion Light Treads Treads Light Treads Leg Aluminum Leg Utility Large Storage Unit Storage Large Storage Unit Processor Targeting Computer Weapon Heavy Assault Rifle Energy Gun Small Laser Ballistic Gun Heavy Assault Rifle Build | -11 -10 -10 ------- Run | Yrd Mat Sub Slots Evolved . | . . . Power . | . . . Propulsion . | . . . Utility . | . . . Weapon . | . . . Parts Attached 26 | 8 12 6 Power 4 | 2 1 1 Engine 4 | 2 1 1 Core . | . . . Reactor . | . . . Propulsion 7 | 2 4 1 Treads 3 | . 2 1 Leg 4 | 2 2 . Wheel . | . . . Hover . | . . . Flight . | . . . Utility 4 | 1 3 . Device . | . . . Storage 3 | 1 2 . Processor 1 | . 1 . Hackware . | . . . Protection . | . . . Artifact . | . . . Weapon 11 | 3 4 4 Energy Gun 5 | 2 . 3 Energy Cannon . | . . . Ballistic Gun 6 | 1 4 1 Ballistic Cannon . | . . . Launcher . | . . . Special Weapon . | . . . Impact Weapon . | . . . Slashing Weapon . | . . . Piercing Weapon . | . . . Special Melee Weapon . | . . . Unidentified Prototypes . | . . . Parts Lost 7 | . 1 6 Power . | . . . Propulsion 3 | . . 3 Utility . | . . . Weapon 4 | . 1 3 Highest Loss Streak 4 | . 1 4 To Critical Strikes 1 | . . 1 Average Slot Usage (%) 96 | . 95 99 Engine 13 | . 13 14 Treads 22 | . 20 27 Leg 5 | . 7 . Storage 15 | . 16 14 Processor 9 | . 7 14 Ballistic Gun 27 | . 27 26 Naked Turns . | . . . Heaviest Build 36 | 13 36 33 Greatest Support 40 | 20 40 40 Greatest Overweight (x) 1 | 1 . . Average Overweight (x) . | . . . Largest Inventory Capacity 15 | 8 15 15 Average Capacity 13 | 7 13 15 Most Carried 15 | 4 15 15 Average Carried 10 | 2 8 14 Final Capacity 15 | 8 15 15 Final Carried 15 | 4 15 11 Class Distribution -------------------- 100% | Mutant Dominant Class ---------------- Mutant | -10/Materials Mutant | -10/Subcaves Resources | -11 -10 -10 ----------- Run | Yrd Mat Sub Matter Collected 611 | 202 325 84 Remotely . | . . . Salvage Created 416 | . 381 35 Parts 37 | . 36 1 Haulers Intercepted 1 | . 1 . Recyclers Shooed . | . . . Parts Field Recycled . | . . . Retrieved Matter . | . . . Parts Self-Destructed 10 | . . 10 Prevented . | . . . Kills | -11 -10 -10 ------- Run | Yrd Mat Sub Combat Hostiles Destroyed 13 | . 11 2 Guns 13 | . 11 2 Classes Destroyed 6 | . 5 1 Hauler 1 | . 1 . Operator 1 | . 1 . Watcher 1 | . 1 . Swarmer 6 | . 6 . Grunt 5 | . 5 . Subdweller 2 | . . 2 Best Kill Streak 3 | . 3 1 Combat Bots Only 3 | . 3 1 Max Kills in Single Turn 2 | . 2 1 Gunslinging 1 | . 1 . Exploded . | . . . Melee . | . . . Uniques/NPCs Destroyed . | . . . Combat | -11 -10 -10 -------- Run | Yrd Mat Sub Hostile Shots Fired 108 | . 57 51 Missed 15 | . 9 6 Damage Taken 1478 | . 512 966 Core 256 | . 52 204 Absorbed by Shields . | . . . Core Remaining (%) 100 | 100 . . Volleys Fired 72 | . 36 36 Largest 2 | . 2 2 Hottest 112 | . 60 112 Shots Fired 140 | . 70 70 Gun 140 | . 70 70 Cannon . | . . . Launcher . | . . . Special . | . . . Kinetic 111 | . 64 47 Thermal 29 | . 6 23 Explosive . | . . . Electromagnetic . | . . . Robot Hit Streak 14 | . 9 14 Robot Miss Streak 4 | . 4 2 Penetration Max . | . . . Secondary Targets 1 | . 1 . Max Gunslinging Chain 1 | . 1 . Shots Hit Robots 98 | . 39 59 Core Hits 22 | . 17 5 Critical Kills . | . . . Critical Parts Destroyed . | . . . Critical Strikes . | . . . Melee Attacks . | . . . Impact . | . . . Slashing . | . . . Piercing . | . . . Sneak Attacks . | . . . Combat Hostiles . | . . . Follow-up Attacks . | . . . Damage Inflicted 868 | . 590 278 Guns 868 | . 590 278 Cannons . | . . . Explosions . | . . . Melee . | . . . Ramming . | . . . Kinetic 833 | . 555 278 Thermal 35 | . 35 . Explosive . | . . . Electromagnetic . | . . . Impact . | . . . Slashing . | . . . Piercing . | . . . Highest Corruption . | . . . Average Corruption . | . . . Corruption Purged . | . . . Corruption Blocked . | . . . Overload Shots . | . . . Overflow Damage . | . . . Projectiles . | . . . Explosions . | . . . Melee . | . . . Knockbacks . | . . . Impact . | . . . Kinetic . | . . . Secondary . | . . . Self-Inflicted Damage . | . . . Shots . | . . . Rammed . | . . . Targets Rammed . | . . . Kicked . | . . . Crushed . | . . . Highest Temperature 4 | . 4 3 Average Temperature 2 | . 2 3 Received Heat Transfer 432 | . 156 276 Siege Activations . | . . . Robots Corrupted . | . . . Combat Hostiles . | . . . Parts Fried . | . . . Impact Corruptions . | . . . Robots Melted . | . . . Combat Hostiles . | . . . Parts Melted 2 | . 1 1 Heat Transferred 75 | . 75 . Parts Sabotaged . | . . . Parts Stolen . | . . . Parts Stripped . | . . . Power Chain Reactions . | . . . Alert | -11 -10 -10 ------- Run | Yrd Mat Sub Peak Influence 215 | . 215 . Initial . | . . . Average 57 | . 59 . Maximum Alert Level 1 | . 1 . Low Security (%) 93 | 100 93 . Level 1 6 | . 6 . Level 2 . | . . . Level 3 . | . . . Level 4 . | . . . Level 5 . | . . . High Security . | . . . Max Security . | . . . Squads Dispatched 1 | . 1 . Investigation . | . . . Extermination . | . . . Reinforcement 1 | . 1 . Assault . | . . . Garrison . | . . . Intercept . | . . . Searches Triggered . | . . . Construction Impeded . | . . . Haulers Reinforced . | . . . Active Scanning Responses . | . . . Cargo Convoy Interrupts . | . . . Stealth | -11 -10 -10 --------- Run | Yrd Mat Sub Distress Signals 2 | . 2 . Communications Jammed . | . . . Distress Signals . | . . . Times Spotted 23 | . 19 4 Peak Tracking Total 4 | . 4 3 Tactical Retreats 1 | . 1 . Traps | -11 -10 -10 ------- Run | Yrd Mat Sub Traps Triggered 2 | . 2 . Indirectly . | . . . Trap Hack Attempts . | . . . Triggered . | . . . Disarmed . | . . . Reprogrammed . | . . . Reused . | . . . Traps Extracted . | . . . Installed . | . . . Triggered . | . . . Most Traps Carried 1 | . . 1 Machines | -11 -10 -10 ---------- Run | Yrd Mat Sub Machines Disabled 1 | . . 1 Max in Single Turn 1 | . . 1 Machines Repaired . | . . . Machines Dismantled . | . . . Machines Sabotaged . | . . . Overloaded Fab Kills . | . . . Hacking | -11 -10 -10 --------- Run | Yrd Mat Sub Machines Accessed 8 | . 7 1 Terminals 7 | . 7 . Fabricators . | . . . Repair Stations . | . . . Recycling Units . | . . . Scanalyzers . | . . . Garrison Access . | . . . Total Hacks 23 | . 22 1 Successful 13 | . 12 1 Failed 9 | . 9 . Catastrophic . | . . . Database Lockouts 1 | . 1 . Manual 13 | . 13 . Terminals 22 | . 22 . Fabricators . | . . . Repair Stations . | . . . Recycling Units . | . . . Scanalyzers . | . . . Garrison Access . | . . . Terminal Hacks 10 | . 9 1 Prototype ID Bank 3 | . 3 . Unreport Threat 2 | . 2 . Locate Traps 2 | . 2 . Hauler Manifests 1 | . 1 . Zone Layout 1 | . 1 . Derelict Proto ID Bank 1 | . . 1 Fabricator Hacks . | . . . Repair Station Hacks . | . . . Recycling Unit Hacks . | . . . Scanalyzer . | . . . Garrison Access Hacks . | . . . Unauthorized Hacks 3 | . 3 . Terminals 3 | . 3 . Botnet 3 | . 3 . Fabricators . | . . . Repair Stations . | . . . Recycling Units . | . . . Scanalyzers . | . . . Garrison Access . | . . . Data Cores Recovered . | . . . Used . | . . . Hacking Detections 6 | . 6 . Full Trace Events . | . . . Feedback Events . | . . . Feedback Blocked . | . . . Robot Schematics Acquired . | . . . Robots Built . | . . . Authchips . | . . . Time . | . . . Total Robot Build Rating . | . . . Part Schematics Acquired . | . . . Parts Built . | . . . Authchips . | . . . Time . | . . . Total Part Build Rating . | . . . Parts Repaired . | . . . Time . | . . . Parts Recycled . | . . . Recycled Matter . | . . . Retrieved Matter . | . . . Retrieved Components . | . . . Parts Scanalyzed . | . . . Part Schematics Acquired . | . . . Parts Damaged . | . . . Bothacking | -11 -10 -10 ------------ Run | Yrd Mat Sub Used RIF Installer . | . . . Robots Hacked . | . . . Non-combat . | . . . Combat . | . . . Robot Hacks Applied . | . . . Relay Couplers Released . | . . . Fabnet Peak Effective % . | . . . Robots Rewired . | . . . Allies Hacked . | . . . Hacks Repelled . | . . . Allies | -11 -10 -10 -------- Run | Yrd Mat Sub Total Allies . | . . . Largest Group . | . . . Highest-Rated Group . | . . . Highest-Rated Ally . | . . . Total Orders . | . . . Ally Attacks . | . . . Total Damage . | . . . Kills . | . . . Allies Corrupted . | . . . Allies Melted . | . . . Intel | -11 -10 -10 ------- Run | Yrd Mat Sub Robot Analysis Total . | . . . Derelict Logs Recovered 1 | . . 1 Drone Launches . | . . . Drone Recoveries . | . . . Exploration | -11 -10 -10 ------------- Run | Yrd Mat Sub Turns Passed 2121 | 59 1372 690 Spaces Moved 1015 | 37 620 358 Core 5 | 5 . . Treads 761 | . 403 358 Legs 249 | 32 217 . Wheels . | . . . Hover . | . . . Flight . | . . . Fastest Speed 50 | 50 120 160 Average Speed 149 | 118 146 160 Slowest Speed 190 | 190 160 160 Overloaded Moves . | . . . Propulsion Burnouts . | . . . Robots Hopped . | . . . Cave-ins Triggered . | . . . Exploration Rate (%) 41 | 3 93 28 Regions Visited 2 Branch Regions 1 Pre-discovered Areas . | . . . Known Exits Taken . | . . . Unknown Exits Taken 2 | 1 1 . Scrap Searched 3 | . . 3 Spaces Dug . | . . . Terrain Destroyed . | . . . Melee . | . . . Projectile . | . . . AOE . | . . . Terrain Rammed . | . . . Walls Destroyed . | . . . Machines Disabled . | . . . Actions | -11 -10 -10 --------- Run | Yrd Mat Sub Total 1476 | 48 1018 410 Wait 327 | 1 323 3 Move 1013 | 36 619 358 Hop . | . . . Pick Up 22 | 3 16 3 Fast Attach 12 | 6 5 1 Attach 5 | . 1 4 Detach 1 | . 1 . Swap 9 | 2 6 1 Drop 15 | . 11 4 Fire 72 | . 36 36 Melee . | . . . Ram . | . . . Kick . | . . . Crush . | . . . Escape Stasis . | . . . Rewire . | . . . Trap . | . . . Miscellaneous . | . . . Route ------- -11/Scrapyard -10/Materials (discovered 5 exits: [*Mat x3] / [*Min] / *Sub) -10/Subcaves (discovered 1 exit: Rec) History --------- Turn | Location | Event 18 | -11/Scrapyard | Discovered new exit (range 15) 60 | -11/Scrapyard | Entered Materials 312 | -10/Materials | Build established: Mutant 338 | -10/Materials | Discovered new exit (range 8) 507 | -10/Materials | Discovered new exit (range 14) 716 | -10/Materials | Discovered new exit (range 16) 1112 | -10/Materials | Discovered new exit (range 10) 1139 | -10/Materials | Central database locked down 1413 | -10/Materials | Discovered new exit (range 5) 1432 | -10/Materials | Entered Subcaves 1432 | -10/Subcaves | Identified exit to Recycling 1526 | -10/Subcaves | Visited 4L-MR0's lab 1552 | -10/Subcaves | Found Rainbow Chip 1925 | -10/Subcaves | Shifting Twisted Machinery released Sub. Power Source 1948 | -10/Subcaves | Shifting Twisted Machinery released Mak. Flight Unit 1978 | -10/Subcaves | Shifting Twisted Machinery released Shrapnel Trap 2049 | -10/Subcaves | A swath of the cavern ceiling suddenly collapsed 2071 | -10/Subcaves | Core integrity fell below 50% 2103 | -10/Subcaves | Core integrity fell below 20% 2122 | -10/Subcaves | Destroyed by JV-W43(R) with Subdweller Laser Last Messages --------------- Sink. 02049_ 4L-G1Z(R) crushed by falling debris. 02049_ 4L-G1Z(R) destroyed. 02049_ Scrap Shield Fragment crushed. 02049_ JV-W43(R) crushed by falling debris. 02049_ Disposable Heat Sink crushed. 02049_ GA-FH1(R) crushed by falling debris. 02049_ 35 Matter crushed. A swath of the cavern ceiling suddenly collapses. 02055_ GA-FH1(R) affixes Scrap Shield Fragment to Scrap Shield. 02055_ GA-FH1(R) destroyed. 02056_ Lgt. Treads destroyed. 02058_ Barrage Gun destroyed. 02098_ Lgt. Treads destroyed. 02110_ Critical hit (Destroy). 02110_ Lgt. Treads destroyed. 02114_ Hvy. Assault Rifle destroyed. 02120_ Beam Rifle destroyed. Map ----- +----------------------------------------------------+ | ?????????????????????????????????????????????????? | | ?????????????????????????????????????????????????? | | ?????????????????????????????????????????????????? | | ?????????????????????????????????????????????????? | | ?????????????????????????????????????????????????? | | ??????? ????????????#????????????????????????????? | | ?????## ??????????? ##? ???????????????????????? | | ?????# ??????????? ## #???????????????????????? | | ?????# ?????????## # ##???????????????????????? | | ?????# ????????# ????????????????????????? | | ?????# #????????# ?????????????????????????? | | ?????# #???????## #??????????????????????????? | | ###?## #??????## #??????????????????????????? | | ## ?????## #?? ???????????????????????? | | #???### #??? ??????????????????????? | | ##### ##?? ???????????????????????? | | ?# ## #?? "??????????????????????? | | ## #?# "#?????????????????????? | | # ### #? ""#?????????????????????? | | # ##?# ### "##??????#?????????????? | | # #??# "## ""#??#? ##????????????? | | ## ##?## ] """ """## # ?????????????? | | ?#### ###??# ## ; ### " ??????????????? | | ??###" ####?#### ####";R"# $#?????????????????? | | ?##=" "" #???## "#?### ; # #??????????????????? | | ?# """ ##???# #??## @;#" #??????????????????? | | ## "" #????# ""#??##!##"##??????????????????? | | # ## ##???# """#???###??#???????????????????? | | # ## #???## " #??? #??????????????????????? | | ## #???? ??? #??????????????????????? | | ?# #????# "?? ??????????????????????? | | ?# ###??# ## ?? ??????????????????????? | | ?## #######?### ??????????????????????? | | ??## ##??????# ?????????????????????? | | ???# #??????## ##?????????????????????? | | #??# " * ##???? ?? ???????????????????????? | | #??## " " ### #? ???????????????????????? | | #???# " #? ???????????????????????? | | ##?## " " #?? ???????????????????????? | | #?# " #??#???????????????????????? | | #?# " ## #?????????????????????????? | | ##?# #? ### #????????????????????????? | | #??## #?? ##??? ?????????????????????????? | | ##??# #??##????? ?????????????????????????? | | #### #???????????????????????????????????? | | ## ##???????????????????????????????????? | | ## ####????????????????????????????????????? | | ##???????????????????????????????????????? | | ## ##????????????????????????????????????????? | | ?## ##?????????????????????????????????????????? | +----------------------------------------------------+ Best States ------------- Heat Dissipation 25 Energy Generation 15 Energy Capacity 265 Matter Stores 300 Matter Capacity 300 Sight Range 16 Terrain Scan Density 10 Evasion (%) 55 Targeting Accuracy 5 Recoil Reduction 2 Item Schematics ----------------- None Robot Schematics ------------------ None Fabricated ------------ Nothing Alien Tech Used ----------------- None Achievements -------------- None Challenges ------------ None Game ------ Seed CobblerChargeFrame Manual? 0 Play Time 00:22:47 Cumulative 39.3 hours Start 2024.04.22 @ 22:33:27 End 2024.04.22 @ 22:55:22 Sessions 1 Manual Loads 0 Difficulty Rogue Special Mode None Game No. 23 Rogue 23 Adventurer 0 Explorer 0 Win Type - Total 1 Types 1/0/0/0/0/0/0/0/0 Lore% 21 Gallery% 27 Achievement% 28 Wizard Run 0 Options --------- Layout 2 ASCII 0 Keyboard 0 Movement Numpad Keybinds 0 Fullscreen 2 Font 24/Smallcaps Map View 50x44 Zoom Use 0% Tactical HUD 1 Map Filters NONE Filters NONE Steam 1 RUN: a55bc992-4d6c-4113-b806-b28fa0461976